bitfinex/quotes_BTCUSD_20240717
["timestamp","ask_amount","ask_price","bid_price","bid_amount"]
[1721228594735,0.161918,65122.0,65117.0,0.153568]
[1721228594936,0.15356,65121.0,65117.0,0.153568]
[1721228595260,0.002,65118.0,65115.0,0.307148]
[1721228595463,0.002,65118.0,65117.0,0.153569]
[1721228595828,0.002,65118.0,65116.0,0.153571]
[1721228596029,0.07717479,65117.0,65111.0,0.0782]
[1721228596351,0.153578,65114.0,65112.0,0.0385386]
[1721228596551,0.002,65118.0,65112.0,0.0385386]
[1721228597167,0.07717479,65120.0,65112.0,0.0385386]
[1721228597376,0.07717479,65120.0,65113.0,0.153578]
[1721228597377,0.153568,65118.0,65113.0,0.153578]
[1721228597513,0.153576,65114.0,65112.0,0.0385386]
[1721228597710,0.153576,65114.0,65113.0,0.02021226]
[1721228597914,0.153571,65117.0,65113.0,0.02021226]
[1721228598125,0.30714,65117.0,65113.0,0.02021226]
[1721228598368,0.153576,65114.0,65113.0,0.001]
[1721228598971,0.15358,65113.0,65111.0,0.003]
[1721228599264,0.15358,65113.0,65108.0,0.153589]
[1721228599415,0.15358,65113.0,65076.0,0.29908762]
[1721228599416,0.00084,65121.0,65112.0,0.15358]
[1721228599618,0.153569,65118.0,65113.0,0.03079617]
[1721228599826,0.15357,65117.0,65113.0,0.03079617]
[1721228599999,0.001,65114.0,65113.0,0.03679617]
[1721228600423,0.001,65114.0,65113.0,1.10504429]
[1721228600628,0.001,65114.0,65113.0,1.69290229]
[1721228600971,0.001,65114.0,65113.0,1.68983091]
[1721228601207,0.001,65114.0,65113.0,1.40913091]
[1721228601452,0.768882,65114.0,65113.0,0.006]
[1721228601642,1.076035,65114.0,65113.0,0.006]
[1721228601770,1.383188,65114.0,65113.0,0.006]
[1721228601969,1.49064989,65114.0,65113.0,0.006]
[1721228602177,0.15361,65100.0,65094.0,0.153623]
[1721228602377,0.00741299,65099.0,65095.0,0.0599475]
[1721228602573,0.153621,65096.0,65094.0,0.15438174]
[1721228602797,0.00744455,65095.0,65084.0,0.307291]
[1721228603020,0.00744455,65095.0,65089.0,0.061506]
[1721228603203,0.153626,65093.0,65089.0,0.061506]
[1721228603401,0.153626,65093.0,65089.0,0.08174057]
[1721228603609,0.153626,65093.0,65089.0,0.23537557]
[1721228603809,0.001,65100.0,65090.0,0.307264]
[1721228603810,0.307224,65099.0,65090.0,0.307264]
[1721228604010,0.001,65100.0,65098.0,0.153613]
[1721228604241,0.001,65100.0,65099.0,0.78234603]
[1721228604448,0.001,65100.0,65099.0,1.08649799]
[1721228604650,0.153575,65115.0,65099.0,0.31843799]
[1721228604856,0.153577,65114.0,65109.0,0.153588]
[1721228605052,0.153573,65116.0,65110.0,0.23117804]
[1721228605251,0.00084,65121.0,65110.0,0.23117804]
[1721228605252,0.307136,65118.0,65110.0,0.23117804]
[1721228605426,0.153583,65111.0,65110.0,0.23117804]
[1721228605632,0.307136,65118.0,65110.0,0.38476304]
[1721228605633,0.153576,65115.0,65110.0,0.38476304]
[1721228605834,0.00084,65121.0,65111.0,0.00307146]
[1721228606016,0.00084,65121.0,65120.0,0.460687]
[1721228606221,0.00084,65121.0,65120.0,0.61506874]
[1721228606423,0.153564,65120.0,65115.0,0.153573]
[1721228606724,0.153564,65120.0,65116.0,0.30795274]
[1721228606898,0.307961,65121.0,65120.0,0.153562]
[1721228606899,0.00084,65121.0,65120.0,0.153562]
[1721228607107,0.00084,65121.0,65120.0,0.06150747]
[1721228607520,0.00084,65121.0,65120.0,0.36945121]
[1721228607724,0.00084,65121.0,65120.0,0.67657621]
[1721228608146,0.00084,65121.0,65120.0,0.36945121]
[1721228608349,0.00384,65121.0,65120.0,0.36945121]
[1721228608550,0.00384,65121.0,65120.0,0.67657621]
[1721228608988,0.00384,65121.0,65120.0,1.29082621]
[1721228609291,0.00384,65121.0,65120.0,1.42752621]
[1721228610433,0.00884,65121.0,65120.0,1.93565121]
[1721228610682,0.00884,65121.0,65120.0,1.98565121]
[1721228612463,0.00836,65137.0,65136.0,0.03079137]
[1721228612705,0.01607065,65137.0,65136.0,0.49136437]
[1721228613159,0.00836,65137.0,65136.0,0.18431537]
[1721228613391,0.0161602,65137.0,65136.0,0.03079137]
[1721228613809,0.7847722,65137.0,65136.0,0.011]
[1721228614052,1.0918172,65137.0,65136.0,0.011]
[1721228614526,0.1706822,65137.0,65136.0,0.011]
[1721228614700,0.4777272,65137.0,65136.0,0.011]
[1721228615715,1.0918172,65137.0,65136.0,0.011]
[1721228616674,1.0928172,65137.0,65136.0,0.012]
[1721228616872,1.0928172,65137.0,65122.0,0.00266905]
[1721228616873,0.153544,65128.0,65122.0,0.00266905]
[1721228617099,0.307071,65132.0,65124.0,0.153553]
[1721228617275,0.16134803,65127.0,65125.0,0.00266905]
[1721228617478,0.320405,65137.0,65129.0,0.153539]
[1721228617689,0.307057,65135.0,65130.0,0.00266905]
[1721228617888,0.01336,65137.0,65130.0,0.00266905]
[1721228617889,0.460602,65132.0,65130.0,0.00266905]
[1721228618088,0.153545,65128.0,65124.0,0.153552]
[1721228618315,0.01336,65137.0,65125.0,0.00266905]
[1721228618316,0.460645,65126.0,65125.0,0.00266905]
[1721228618512,0.307096,65127.0,65121.0,0.00266905]
[1721228618870,0.460666,65123.0,65122.0,0.12750647]
[1721228619074,0.46075,65111.0,65110.0,0.00266905]
[1721228619395,0.05,65131.0,65107.0,0.00266905]
[1721228619396,0.460771,65108.0,65107.0,0.00266905]
[1721228619539,0.460771,65108.0,65094.0,0.0652]
[1721228619540,0.153607,65101.0,65100.0,0.00266905]
[1721228619763,0.15361,65100.0,65096.0,0.15628705]
[1721228619993,0.307181,65108.0,65097.0,0.20725565]
[1721228619994,0.153598,65105.0,65097.0,0.20725565]
[1721228620230,0.0767,65118.0,65104.0,0.1536]
[1721228620468,0.153597,65106.0,65105.0,0.00266905]
[1721228620707,0.153602,65103.0,65102.0,0.00266905]
[1721228620943,0.153607,65101.0,65098.0,0.00266905]
[1721228621174,0.153612,65099.0,65098.0,0.00266905]
[1721228621419,0.153621,65095.0,65094.0,0.00266905]
[1721228621657,0.768142,65092.0,65091.0,0.00266905]
[1721228621896,0.768142,65092.0,65073.0,0.2]
[1721228621897,0.460935,65085.0,65084.0,0.00266905]
[1721228622145,0.460992,65077.0,65076.0,0.00266905]
[1721228622371,0.460992,65077.0,65069.0,0.009174]
[1721228622372,0.25438174,65084.0,65069.0,0.009174]
[1721228622596,0.461041,65070.0,65069.0,0.0181214]
[1721228622770,0.25438174,65084.0,65069.0,0.009174]
[1721228622771,0.307326,65078.0,65069.0,0.009174]
[1721228622985,0.153674,65073.0,65070.0,0.00266905]
[1721228623125,0.152878,65071.0,65070.0,0.00266905]
[1721228623344,0.461041,65070.0,65069.0,0.009174]
[1721228623751,0.768402,65070.0,65069.0,0.009174]
[1721228624104,0.461041,65070.0,65069.0,0.009174]
[1721228624687,0.15368,65070.0,65069.0,0.009174]
[1721228624995,0.461026,65073.0,65069.0,0.009174]
[1721228625194,0.23917479,65099.0,65073.0,0.153672]
[1721228625195,0.153662,65078.0,65073.0,0.153672]
[1721228625372,0.153664,65077.0,65074.0,0.00266905]
[1721228625541,0.307308,65082.0,65072.0,0.15634405]
[1721228625732,0.153666,65076.0,65073.0,0.04894266]
[1721228625988,0.153666,65076.0,65074.0,0.00266905]
[1721228626166,0.153671,65074.0,65073.0,0.04894266]
[1721228626373,0.1,65084.0,65069.0,0.009174]
[1721228626374,0.15368,65070.0,65069.0,0.009174]
[1721228626693,0.768402,65070.0,65069.0,0.009174]
[1721228627001,1.220463,65070.0,65069.0,0.009174]
[1721228627562,1.222463,65070.0,65069.0,0.009174]
[1721228628104,1.78170574,65070.0,65069.0,0.009174]
[1721228628616,1.321963,65070.0,65069.0,0.009174]
[1721228628745,0.869902,65070.0,65069.0,0.009174]
[1721228628949,0.867902,65070.0,65069.0,0.009174]
[1721228629348,1.175263,65070.0,65069.0,0.009174]
[1721228629635,1.175263,65070.0,65069.0,0.010174]
[1721228629636,1.189263,65070.0,65069.0,0.010174]
[1721228629836,1.79150574,65070.0,65069.0,0.010174]
[1721228630010,2.24703304,65070.0,65069.0,0.010174]
[1721228630219,1.79150574,65070.0,65069.0,0.010174]
[1721228630990,1.79940277,65070.0,65069.0,0.010174]
[1721228631229,1.82240277,65070.0,65069.0,0.010174]
[1721228631345,1.80740277,65070.0,65069.0,0.011174]
[1721228631987,1.79940277,65070.0,65069.0,0.010174]
[1721228632388,1.78540277,65070.0,65069.0,0.009174]
[1721228632756,1.79640277,65070.0,65069.0,0.009174]
[1721228632951,1.80440277,65070.0,65069.0,0.010174]
[1721228633195,1.78550574,65070.0,65069.0,0.010174]
[1721228633850,1.98985531,65070.0,65069.0,0.010174]
[1721228634055,2.02685531,65070.0,65069.0,0.010174]
[1721228634275,2.33421631,65070.0,65069.0,0.010174]
[1721228634981,2.80357731,65070.0,65069.0,0.010174]
[1721228635181,1.213194,65056.0,65055.0,0.000924]
[1721228635516,1.77500274,65056.0,65055.0,0.000924]
[1721228636040,1.67500274,65056.0,65055.0,0.000924]
[1721228636194,1.72500274,65056.0,65055.0,0.000924]
[1721228636583,1.67500274,65056.0,65055.0,0.000724]
[1721228637243,1.68900274,65056.0,65055.0,0.001724]
[1721228638467,1.70100274,65056.0,65055.0,0.001724]
[1721228639396,1.85535231,65056.0,65055.0,0.001724]
[1721228639590,1.70100274,65056.0,65055.0,0.001724]
[1721228640442,1.239194,65056.0,65055.0,0.001724]
[1721228640597,1.164194,65056.0,65055.0,0.001724]
[1721228640997,0.794567,65056.0,65055.0,0.001724]
[1721228641198,1.70965944,65056.0,65055.0,0.001724]
[1721228641701,1.84195944,65056.0,65055.0,0.001724]
[1721228642138,1.79195944,65056.0,65055.0,0.001724]
[1721228642342,1.91495944,65056.0,65055.0,0.001724]
[1721228643119,2.19292974,65056.0,65055.0,0.001724]
[1721228643442,1.88550274,65056.0,65055.0,0.001724]
[1721228643642,2.14292974,65056.0,65055.0,0.001724]
[1721228644087,1.88550274,65056.0,65055.0,0.001724]
[1721228644962,2.85492974,65056.0,65055.0,0.001724]
[1721228645156,3.10162931,65056.0,65055.0,1e-06]
[1721228645808,1.903211,65042.0,65041.0,0.009174]
[1721228646040,1.903211,65042.0,65041.0,1e-06]
[1721228646041,2.32239274,65042.0,65041.0,1e-06]
[1721228646240,2.35854803,65042.0,65041.0,1e-06]
[1721228646563,2.8203906,65042.0,65041.0,1e-06]
[1721228646727,2.78423531,65042.0,65041.0,1e-06]
[1721228646945,2.8203906,65042.0,65041.0,1e-06]
[1721228647380,2.8203906,65042.0,65031.0,0.009174]
[1721228647381,2.549843,65037.0,65031.0,0.009174]
[1721228647585,0.81885,65032.0,65031.0,0.009174]
[1721228647783,1.68927174,65032.0,65031.0,0.009174]
[1721228647992,2.39934347,65032.0,65031.0,0.009174]
[1721228648206,2.34934347,65032.0,65031.0,0.009174]
[1721228648387,1.80781174,65032.0,65031.0,0.009174]
[1721228649016,1.78481174,65032.0,65031.0,0.009174]
[1721228649424,1.93916131,65032.0,65031.0,0.009174]
[1721228649577,2.26970131,65032.0,65031.0,0.009174]
[1721228649803,1.78481174,65032.0,65031.0,0.009174]
[1721228651034,1.79881174,65032.0,65031.0,0.009174]
[1721228651410,0.78285,65032.0,65031.0,0.009174]
[1721228651606,0.307526,65036.0,65031.0,0.009174]
[1721228651832,0.0809,65047.0,65032.0,0.00266905]
[1721228652029,0.153752,65040.0,65037.0,0.0629]
[1721228652375,0.307434,65055.0,65037.0,0.0629]
[1721228652376,0.0633,65057.0,65038.0,0.00266905]
[1721228652567,0.50084,65071.0,65042.0,0.153746]
[1721228652568,0.15438174,65056.0,65042.0,0.153746]
[1721228652766,0.307461,65049.0,65043.0,0.00266905]
[1721228653025,0.307461,65049.0,65039.0,0.0829]
[1721228653026,0.153744,65043.0,65042.0,0.00266905]
[1721228653231,0.307469,65048.0,65040.0,0.00266905]
[1721228653509,0.153743,65044.0,65040.0,0.04826736]
[1721228653714,0.307476,65046.0,65042.0,0.153746]
[1721228653715,0.153738,65046.0,65042.0,0.153746]
[1721228653981,0.15438174,65056.0,65043.0,0.00266905]
[1721228654163,0.15438174,65056.0,65040.0,0.35310031]
[1721228654164,0.014,65047.0,65046.0,0.153737]
[1721228654311,0.014,65047.0,65046.0,0.47685161]
[1721228654531,0.307408,65061.0,65046.0,0.32311461]
[1721228654777,0.153723,65052.0,65048.0,0.153731]
[1721228654976,0.307408,65061.0,65050.0,0.0804]
[1721228655178,0.77038571,65076.0,65054.0,0.153717]
[1721228655179,0.00084,65071.0,65054.0,0.153717]
[1721228655379,0.30738,65066.0,65055.0,0.00266905]
[1721228655536,0.461148,65055.0,65054.0,0.00226905]
[1721228655747,0.461161,65053.0,65052.0,0.00226905]
[1721228655976,0.461161,65053.0,65041.0,0.1451]
[1721228655977,0.153742,65044.0,65042.0,0.00226905]
[1721228656175,0.307477,65046.0,65042.0,0.00226905]
[1721228656176,0.153738,65046.0,65042.0,0.183858]
[1721228656379,0.001,65047.0,65043.0,0.15601205]
[1721228656788,0.307475,65046.0,65043.0,0.00226905]
[1721228656996,0.307475,65046.0,65022.0,0.507587]
[1721228656997,0.153744,65043.0,65042.0,0.00226905]
[1721228657211,0.153758,65037.0,65036.0,0.00226905]
[1721228657426,0.461275,65037.0,65036.0,0.00226905]
[1721228657626,0.461275,65037.0,65031.0,0.009174]
[1721228657627,0.153758,65037.0,65033.0,0.153766]
[1721228657827,0.15377,65033.0,65031.0,0.009174]
[1721228658033,0.307492,65043.0,65042.0,0.001]
[1721228658242,0.461236,65043.0,65042.0,0.001]
[1721228658433,0.768724,65043.0,65042.0,0.001]
[1721228659026,1.33059774,65043.0,65042.0,0.001]
[1721228659431,1.87308974,65043.0,65042.0,0.001]
[1721228659633,1.82308974,65043.0,65042.0,0.001]
[1721228659882,2.13058174,65043.0,65042.0,0.001]
[1721228660082,0.76885,65032.0,65031.0,0.009174]
[1721228660457,1.07639,65032.0,65031.0,0.009174]
[1721228661341,1.79125074,65032.0,65031.0,0.009174]
[1721228661535,1.91425074,65032.0,65031.0,0.009174]
[1721228663120,2.43379074,65032.0,65031.0,0.009174]
[1721228663295,2.38379074,65032.0,65031.0,0.009174]
[1721228663510,1.91425074,65032.0,65031.0,0.009174]
[1721228663726,1.80661174,65032.0,65031.0,0.009174]
[1721228663932,1.78361174,65032.0,65031.0,0.009174]
[1721228664557,1.33077174,65032.0,65031.0,0.009174]
[1721228664784,1.66131174,65032.0,65031.0,0.009174]
[1721228665362,1.33077174,65032.0,65031.0,0.009174]
[1721228665937,1.34077174,65032.0,65031.0,0.009174]
[1721228666254,0.87885,65032.0,65031.0,0.009174]
[1721228667045,0.46131,65032.0,65031.0,0.009174]
[1721228667241,0.46131,65032.0,65031.0,0.073074]
[1721228667458,0.78085,65032.0,65031.0,0.073074]
[1721228668310,1.35160994,65032.0,65031.0,0.009174]
[1721228668522,1.78214994,65032.0,65031.0,0.009174]
[1721228668715,1.79614994,65032.0,65031.0,0.009174]
[1721228669115,1.68731174,65032.0,65031.0,0.009174]
[1721228669318,1.81501174,65032.0,65031.0,0.009174]
[1721228669685,1.86501174,65032.0,65031.0,0.009174]
[1721228669891,2.33455174,65032.0,65031.0,0.009174]
[1721228670313,2.33155174,65032.0,65031.0,0.009174]
[1721228670522,2.48590131,65032.0,65031.0,0.009174]
[1721228670991,2.49990131,65032.0,65031.0,0.009174]
[1721228671271,2.49990131,65032.0,65024.0,0.009185]
[1721228671272,1.903657,65025.0,65024.0,0.009185]
[1721228671396,2.14853874,65025.0,65024.0,0.009185]
[1721228671596,1.81565502,65025.0,65024.0,0.009185]
[1721228671791,1.80196474,65025.0,65024.0,0.009185]
[1721228672636,1.33089074,65025.0,65024.0,0.009185]
[1721228673146,1.34489074,65025.0,65024.0,0.009185]
[1721228673346,1.33089074,65025.0,65024.0,0.009185]
[1721228673825,1.34489074,65025.0,65024.0,0.009185]
[1721228674145,1.78695381,65025.0,65024.0,0.009185]
[1721228674399,1.82095381,65025.0,65024.0,0.009185]
[1721228676279,1.35589074,65025.0,65024.0,0.009185]
[1721228676708,1.34189074,65025.0,65024.0,0.009185]
[1721228676877,0.879935,65025.0,65024.0,0.009185]
[1721228677279,1.33089074,65025.0,65024.0,0.009185]
[1721228677633,1.81666474,65025.0,65024.0,0.009185]
[1721228677837,1.97101431,65025.0,65024.0,0.009185]
[1721228678061,1.52224031,65025.0,65024.0,0.009185]
[1721228678235,1.34489074,65025.0,65024.0,0.009185]
[1721228678626,1.35889074,65025.0,65024.0,0.009185]
[1721228678826,1.34489074,65025.0,65024.0,0.009185]
[1721228679424,1.33089074,65025.0,65024.0,0.009185]
[1721228681154,1.79281431,65025.0,65024.0,0.009185]
[1721228681372,1.49724031,65025.0,65024.0,0.009185]
[1721228681743,1.34289074,65025.0,65024.0,0.009185]
[1721228682138,1.34489074,65025.0,65024.0,0.009185]
[1721228682401,1.176509,65025.0,65024.0,0.009185]
[1721228682600,1.187509,65025.0,65024.0,0.009185]
[1721228683169,1.201509,65025.0,65024.0,0.009185]
[1721228683356,0.264787,65025.0,65024.0,0.009185]
[1721228683496,0.164787,65025.0,65024.0,0.152485]
[1721228684026,0.165787,65025.0,65024.0,0.152485]
[1721228684184,0.473361,65025.0,65024.0,0.152485]
[1721228684387,0.789935,65025.0,65024.0,0.009185]
[1721228684600,1.25189074,65025.0,65024.0,0.009185]
[1721228684794,1.24289074,65025.0,65024.0,0.009185]
[1721228685002,1.86591431,65025.0,65024.0,0.009185]
[1721228685205,1.88891431,65025.0,65024.0,0.009185]
[1721228686281,1.94592902,65025.0,65024.0,0.009185]
[1721228686496,1.83781431,65025.0,65024.0,0.009185]
[1721228686692,1.67146474,65025.0,65024.0,0.009185]
[1721228687193,1.68146474,65025.0,65024.0,0.009185]
[1721228687397,1.72838065,65025.0,65024.0,0.009185]
[1721228687844,1.7542907,65025.0,65024.0,0.009185]
[1721228688047,0.91585091,65025.0,65024.0,0.009185]
[1721228688254,0.94385091,65025.0,65024.0,0.009185]
[1721228688459,0.896935,65025.0,65024.0,0.009185]
[1721228688880,0.882935,65025.0,65024.0,0.009185]
[1721228689087,0.868935,65025.0,65024.0,0.009185]
[1721228689531,0.561361,65025.0,65024.0,0.149185]
[1721228690003,0.570361,65025.0,65024.0,0.149185]
[1721228690237,0.470361,65025.0,65024.0,0.149185]
[1721228690444,0.470361,65025.0,65024.0,0.086285]
[1721228690445,0.777935,65025.0,65024.0,0.086285]
[1721228690658,0.777935,65025.0,65024.0,0.009185]
[1721228691298,0.484361,65025.0,65024.0,0.009185]
[1721228691719,0.791935,65025.0,65024.0,0.009185]
[1721228691969,0.470361,65025.0,65024.0,0.009185]
[1721228692523,0.482361,65025.0,65024.0,0.009185]
[1721228693191,0.789935,65025.0,65024.0,0.009185]
[1721228693382,0.482361,65025.0,65024.0,0.009185]
[1721228693830,0.021,65025.0,65024.0,0.3258174]
[1721228694036,0.021,65025.0,65024.0,1.13606614]
[1721228694248,0.021,65025.0,65024.0,1.57134855]
[1721228694466,0.021,65025.0,65024.0,2.10382655]
[1721228694669,0.00052495,65043.0,65030.0,0.05]
[1721228694874,0.46304871,65041.0,65040.0,0.298151]
[1721228695080,0.307462,65049.0,65040.0,0.2049663]
[1721228695288,0.307471,65047.0,65040.0,0.2049663]
[1721228695493,0.153745,65043.0,65040.0,0.2049663]
[1721228695706,0.153749,65041.0,65040.0,0.2049663]
[1721228695919,0.04592349,65052.0,65040.0,0.1444]
[1721228696121,0.307481,65045.0,65040.0,0.1444]
[1721228696545,0.153739,65046.0,65041.0,0.153748]
[1721228696764,0.153741,65045.0,65040.0,0.1444]
[1721228696973,0.307458,65050.0,65041.0,0.0759412]
[1721228697175,0.307458,65050.0,65041.0,0.3834362]
[1721228697176,0.153734,65048.0,65041.0,0.3834362]
[1721228697431,0.00052495,65049.0,65041.0,0.0759412]
[1721228697628,0.153742,65044.0,65041.0,0.0759412]
[1721228698050,0.153749,65041.0,65040.0,0.1444]
[1721228698263,0.461252,65041.0,65030.0,0.1466]
[1721228698481,0.153765,65035.0,65030.0,0.300375]
[1721228698682,0.307492,65043.0,65035.0,0.153762]
[1721228698917,0.07717479,65046.0,65036.0,0.0153762]
[1721228699114,0.153772,65031.0,65030.0,0.1466]
[1721228699329,0.461317,65031.0,65030.0,0.1466]
[1721228699543,0.46186174,65045.0,65030.0,0.1466]
[1721228699757,0.15377,65032.0,65030.0,0.1466]
[1721228699978,0.307534,65034.0,65030.0,0.1506]
[1721228699979,0.153772,65031.0,65030.0,0.1506]
[1721228700185,0.153772,65031.0,65030.0,0.1466]
[1721228700406,0.07717479,65044.0,65030.0,0.1466]
[1721228700407,0.153756,65038.0,65030.0,0.1770381]
[1721228700616,0.5077665,65045.0,65030.0,0.1770381]
[1721228700617,0.00052495,65037.0,65036.0,0.15376]
[1721228700837,0.307472,65047.0,65036.0,0.11914417]
[1721228701051,0.15426195,65046.0,65042.0,0.153745]
[1721228701256,0.15426195,65046.0,65040.0,0.15375]
[1721228701257,0.307476,65046.0,65040.0,0.15375]
[1721228701512,0.153738,65046.0,65041.0,0.02876015]
[1721228701739,0.153738,65046.0,65042.0,0.153745]
[1721228701940,0.307465,65049.0,65041.0,0.18250915]
[1721228701941,0.15374,65045.0,65041.0,0.18250915]
[1721228702154,0.15374,65045.0,65042.0,0.0394925]
[1721228702365,0.04594259,65052.0,65043.0,0.307488]
[1721228702575,0.003,65046.0,65044.0,0.21514]
[1721228702782,0.003,65046.0,65045.0,0.768697]
[1721228702998,0.003,65046.0,65045.0,0.88554117]
[1721228703200,0.00052495,65054.0,65047.0,0.307469]
[1721228703372,0.00052495,65055.0,65049.0,0.153728]
[1721228703532,0.153718,65055.0,65050.0,0.153727]
[1721228703732,0.00084,65056.0,65047.0,0.307469]
[1721228703935,0.00084,65056.0,65045.0,0.11684417]
[1721228703936,0.00084,65056.0,65055.0,0.295816]
[1721228704229,0.00084,65056.0,65055.0,1.06813561]
[1721228704504,0.00084,65056.0,65055.0,1.11813561]
[1721228704715,0.00084,65056.0,65055.0,1.37556761]
[1721228704882,0.00084,65056.0,65055.0,1.37249374]
[1721228705215,0.00084,65056.0,65055.0,1.41198624]
[1721228705733,0.00084,65056.0,65055.0,0.45019774]
[1721228705938,0.00084,65056.0,65055.0,1.11506174]
[1721228706134,0.00084,65056.0,65055.0,1.42249374]
[1721228706601,0.00084,65056.0,65055.0,2.01112574]
[1721228706811,0.00184,65056.0,65055.0,2.12012574]
[1721228707010,0.00184,65056.0,65055.0,1.60793041]
[1721228707217,0.00184,65056.0,65055.0,1.55793041]
[1721228707803,0.00184,65056.0,65055.0,1.15049841]
[1721228708343,0.00184,65056.0,65055.0,0.612248]
[1721228709395,0.00184,65056.0,65055.0,0.1511]
[1721228709619,0.46298,65056.0,65055.0,0.009]
[1721228709973,0.770407,65056.0,65055.0,0.009]
[1721228710208,1.139634,65056.0,65055.0,0.009]
[1721228710409,1.52479774,65056.0,65055.0,0.009]
[1721228710620,1.88222474,65056.0,65055.0,0.009]
[1721228710806,1.83222474,65056.0,65055.0,0.009]
[1721228711338,1.39401574,65056.0,65055.0,0.009]
[1721228711949,0.307483,65045.0,65037.0,0.153757]
[1721228712152,0.153754,65039.0,65035.0,0.153763]
[1721228712355,0.307471,65047.0,65030.0,0.307549]
[1721228712557,0.153743,65044.0,65039.0,0.153752]
[1721228712797,0.07769974,65054.0,65040.0,0.0153752]
[1721228713032,0.3075,65041.0,65034.0,0.153764]
[1721228713229,0.307451,65051.0,65039.0,0.153752]
[1721228713476,0.153756,65039.0,65032.0,0.307538]
[1721228713627,0.15438174,65050.0,65034.0,0.153765]
[1721228713628,0.153757,65038.0,65034.0,0.153765]
[1721228714027,0.153753,65040.0,65039.0,0.001]
[1721228714229,0.153753,65040.0,65039.0,0.0169763]
[1721228714425,0.153753,65040.0,65039.0,0.0159763]
[1721228714629,0.05,65062.0,65035.0,0.158763]
[1721228714630,0.15376,65036.0,65035.0,0.005]
[1721228714851,0.461281,65036.0,65035.0,0.005]
[1721228715032,0.768802,65036.0,65035.0,0.005]
[1721228715235,0.153772,65032.0,65027.0,0.0796]
[1721228715432,0.153783,65027.0,65025.0,0.00226905]
[1721228715636,0.307526,65035.0,65034.0,0.004]
[1721228715837,0.768815,65035.0,65034.0,0.004]
[1721228716286,1.23072274,65035.0,65034.0,0.004]
[1721228717070,0.92319674,65035.0,65034.0,0.004]
[1721228717288,0.768815,65035.0,65034.0,0.004]
[1721228717474,0.153776,65030.0,65027.0,0.008]
[1721228717872,0.461332,65029.0,65028.0,0.04808161]
[1721228718056,0.461332,65029.0,65027.0,0.008]
[1721228718057,0.153779,65028.0,65027.0,0.008]
[1721228718588,0.153779,65028.0,65024.0,0.01145405]
[1721228718790,0.153776,65030.0,65024.0,0.01145405]
[1721228718996,0.307545,65032.0,65026.0,0.153783]
[1721228718997,0.461317,65032.0,65026.0,0.153783]
[1721228719206,0.307553,65030.0,65024.0,0.009185]
[1721228719404,0.153782,65027.0,65025.0,0.05116035]
[1721228719608,0.307557,65029.0,65024.0,0.009185]
[1721228719609,0.307562,65028.0,65024.0,0.009185]
[1721228719815,0.153782,65027.0,65024.0,0.009185]
[1721228720016,0.461353,65026.0,65025.0,0.00226905]
[1721228720216,0.153787,65025.0,65024.0,0.009185]
[1721228720516,0.461361,65025.0,65024.0,0.009185]
[1721228720970,0.153787,65025.0,65024.0,0.009185]
[1721228721177,0.153787,65025.0,65024.0,0.0273193]
[1721228721377,0.461361,65025.0,65024.0,0.0273193]
[1721228721585,0.768935,65025.0,65024.0,0.0273193]
[1721228721801,0.768935,65025.0,65024.0,0.009185]
[1721228722955,0.768935,65025.0,65024.0,0.014185]
[1721228723346,0.768935,65025.0,65024.0,0.009185]
[1721228723793,0.768935,65025.0,65024.0,0.010185]
[1721228724426,1.68036474,65025.0,65024.0,0.009185]
[1721228724601,1.80336474,65025.0,65024.0,0.009185]
[1721228724803,1.78036474,65025.0,65024.0,0.012185]
[1721228725169,1.93471431,65025.0,65024.0,0.012185]
[1721228725383,1.80336474,65025.0,65024.0,0.012185]
[1721228725990,1.80436474,65025.0,65024.0,0.012185]
[1721228726391,1.78036474,65025.0,65024.0,0.012185]
[1721228726572,1.78036474,65025.0,65024.0,0.009185]
[1721228726777,1.79436474,65025.0,65024.0,0.009185]
[1721228727083,1.79436474,65025.0,65024.0,0.010185]
[1721228727414,1.332409,65025.0,65024.0,0.010185]
[1721228727583,1.318409,65025.0,65024.0,0.009185]
[1721228728227,1.332409,65025.0,65024.0,0.010185]
[1721228728460,1.48679074,65025.0,65024.0,0.010185]
[1721228728649,1.81736474,65025.0,65024.0,0.010185]
[1721228729577,2.28693874,65025.0,65024.0,1e-06]
[1721228729696,1.97936474,65025.0,65024.0,1e-06]
[1721228729908,1.97936474,65025.0,65021.0,0.009185]
[1721228729909,1.384146,65022.0,65021.0,0.009185]
[1721228730114,1.56152774,65022.0,65021.0,0.009185]
[1721228730351,1.66152774,65022.0,65021.0,0.009185]
[1721228730553,2.11451574,65022.0,65021.0,0.009185]
[1721228731464,2.13621811,65022.0,65021.0,0.010185]
[1721228731719,2.29821811,65022.0,65021.0,0.010185]
[1721228731917,2.45256768,65022.0,65021.0,0.010185]
[1721228732152,2.29821811,65022.0,65021.0,0.010185]
[1721228732634,2.31221811,65022.0,65021.0,0.010185]
[1721228732999,2.29821811,65022.0,65021.0,0.010185]
[1721228733403,2.28421811,65022.0,65021.0,0.009185]
[1721228734666,2.29821811,65022.0,65021.0,0.009185]
[1721228734880,2.51656768,65022.0,65021.0,0.010185]
[1721228735002,2.46656768,65022.0,65021.0,0.010185]
[1721228735206,2.46656768,65022.0,65021.0,0.011185]
[1721228735439,2.48056768,65022.0,65021.0,0.011185]
[1721228736288,2.01097968,65022.0,65021.0,0.011185]
[1721228736502,1.83363011,65022.0,65021.0,0.011185]
[1721228736911,0.81867237,65022.0,65021.0,0.011185]
[1721228737055,1.12626037,65022.0,65021.0,0.011185]
[1721228737968,1.22626037,65022.0,65021.0,0.011185]
[1721228738315,1.87721285,65022.0,65021.0,0.009185]
[1721228738664,1.88421285,65022.0,65021.0,0.010185]
[1721228739098,1.96161285,65022.0,65021.0,0.010185]
[1721228739293,1.98461285,65022.0,65021.0,0.010185]
[1721228739696,2.29220085,65022.0,65021.0,0.010185]